[Event "69th RUS-ch Women Higher League 2019"]
[Site "Yaroslavl"]
[Date "2019.07.04"]
[Round "7.14"]
[White "Voit, Daria"]
[Black "Mukhina, Jana"]
[Result "1-0"]
[ECO "E73"]
[WhiteElo "2339"]
[BlackElo "2090"]
[Annotator "NA"]
[PlyCount "126"]
[EventDate "2019.06.27"]
[EventType "swiss"]
[EventCountry "RUS"]
[SourceTitle "playchess.com"]
[Source "ChessBase"]
[SourceQuality "1"]
[TimeControl "40/5400+30:1800+30"]

1. d4 {[%emt 0:00:00]} Nf6 {[%emt 0:00:00]} 2. c4 {[%emt 0:00:00]} g6 {[%emt 0:00:00]} 3. Nc3 {[%emt 0:00:00]} Bg7 {[%emt 0:00:00]} 4. e4 {[%emt 0:00:02]} d6 {[%emt 0:00:03]} 5. Be2 {[%emt 0:00:05]} O-O {[%emt 0:00:25]} 6. Be3 {[%emt 0:00:05]} Na6 {[%emt 0:00:30]} 7. Nf3 {[%emt 0:00:07]} e5 {[%emt 0:13:41]} 8. O-O {[%emt 0:00:51]} Nh5 {[%emt 0:05:29]} 9. Qd2 {[%emt 0:10:40]} c6 {[%emt 0:29:10]} 10. Rfd1 {[%emt 0:05:15]} Qe7 {[%emt 0:02:00]} 11. a3 {[%emt 0:03:11]} Bg4 {[%emt 0:07:39]} 12. h3 {[%emt 0:06:50]} Bc8 {[%emt 0:04:41]} 13. b4 {[%emt 0:04:21]} Nc7 {[%emt 0:07:51]} 14. dxe5 {[%emt 0:06:33]} dxe5 {[%emt 0:01:30]} 15. Bc5 {[%emt 0:00:28]} Qf6 {[%emt 0:01:54]} 16. Bxf8 {[%emt 0:02:04]} Bxf8 {[%emt 0:00:05]} 17. Qg5 {[%emt 0:26:36]} Qxg5 {[%emt 0:01:26]} 18. Nxg5 {[%emt 0:00:03]} Nf4 {[%emt 0:00:18]} 19. Bg4 {[%emt 0:05:17]} f5 {[%emt 0:01:40]} 20. Be2 {[%emt 0:06:08]} Be7 {[%emt 0:03:17]} 21. Nf3 {[%emt 0:00:08]} a5 {[%emt 0:05:49]} 22. c5 {[%emt 0:00:57]} Be6 {[%emt 0:01:48]} 23. Bf1 {[%emt 0:02:01]} fxe4 {[%emt 0:04:35]} 24. Nxe4 {[%emt 0:00:24]} Bd5 {[%emt 0:01:03]} 25. Nc3 {[%emt 0:02:18]} Bxf3 {[%emt 0:02:44]} 26. gxf3 {[%emt 0:00:17]} Ncd5 {[%emt 0:00:30]} 27. Nxd5 {[%emt 0:02:06]} Nxd5 {[%emt 0:00:52]} 28. Bc4 {[%emt 0:00:27]} Kg7 {[%emt 0:00:10]} 29. Bxd5 {[%emt 0:07:50]} cxd5 {[%emt 0:00:01]} 30. Rac1 {[%emt 0:01:54]} axb4 {[%emt 0:00:27]} 31. axb4 {[%emt 0:00:04]} Bg5 {[%emt 0:02:57]} 32. Rc2 {[%emt 0:00:27]} d4 {[%emt 0:01:32]} 33. b5 {[%emt 0:00:05]} Rd8 {[%emt 0:01:52]} 34. c6 {[%emt 0:00:39]} bxc6 {[%emt 0:00:03]} 35. Rxc6 {[%emt 0:00:14]} d3 {[%emt 0:00:34]} 36. Kf1 {[%emt 0:00:35]} d2 {[%emt 0:00:35]} 37. b6 {[%emt 0:00:09]} Rd5 {[%emt 0:00:27]} 38. Ke2 {[%emt 0:00:10]} Rb5 {[%emt 0:00:33]} 39. Ra1 {[%emt 0:00:30]} Kh6 {[%emt 0:00:17]} 40. Rd6 {[%emt 0:00:00]} Rb2 {[%emt 0:00:00]} 41. Rd7 {[%emt 0:23:35]} Rxb6 {[%emt 0:02:32]} 42. Raa7 {[%emt 0:01:30]} Kh5 {[%emt 0:01:06]} 43. Rxh7+ {[%emt 0:00:06]} Bh6 {[%emt 0:00:04]} 44. Ra5 {[%emt 0:05:30]} Kg5 {[%emt 0:07:00]} 45. h4+ {[%emt 0:00:19]} Kf6 {[%emt 0:00:20]} 46. Raa7 {[%emt 0:05:17]} Bf4 {[%emt 0:04:19]} 47. Rae7 {[%emt 0:00:37]} g5 {[%emt 0:01:37]} 48. h5 {[%emt 0:03:51]} g4 {[%emt 0:00:51]} 49. Rhf7+ {[%emt 0:02:09]} Kg5 {[%emt 0:00:03]} 50. Rg7+ {[%emt 0:01:26]} Kxh5 {[%emt 0:03:40]} 51. fxg4+ {[%emt 0:00:26]} Kh4 {[%emt 0:07:55]} 52. Rd7 {[%emt 0:00:13]} Rb1 {[%emt 0:01:21]} 53. Rxd2 {[%emt 0:00:22]} Bxd2 {[%emt 0:00:17]} 54. Kxd2 {[%emt 0:00:03]} Rb4 {[%emt 0:01:25]} 55. Ke3 {[%emt 0:00:53]} Rf4 {[%emt 0:01:17]} 56. Rg8 {[%emt 0:00:14]} Ra4 {[%emt 0:03:19]} 57. f3 {[%emt 0:00:42]} Rf4 {[%emt 0:01:13]} 58. g5 {[%emt 0:00:05]} Kh5 {[%emt 0:01:03]} 59. Re8 {[%emt 0:00:12]} Kxg5 {[%emt 0:00:41]} 60. Rxe5+ {[%emt 0:00:05]} Rf5 {[%emt 0:00:05]} 61. Ke4 {[%emt 0:00:11]} Rxe5+ {[%emt 0:00:46]} 62. Kxe5 {[%emt 0:00:03]} Kg6 {[%emt 0:00:05]} 63. f4 {[%emt 0:00:11]} Kg7 {[%emt 0:00:04]} 1-0

[Event "69th RUS-ch Women Higher League 2019"]
[Site "Yaroslavl"]
[Date "2019.07.04"]
[Round "7.15"]
[White "Dimitrova, Aleksandra"]
[Black "Diakonova, Ekaterina"]
[Result "1-0"]
[ECO "B12"]
[WhiteElo "2273"]
[BlackElo "2196"]
[Annotator "NA"]
[PlyCount "133"]
[EventDate "2019.06.27"]
[EventType "swiss"]
[EventCountry "RUS"]
[SourceTitle "playchess.com"]
[Source "ChessBase"]
[SourceQuality "1"]
[TimeControl "40/5400+30:1800+30"]

1. e4 {[%emt 0:00:00]} c6 {[%emt 0:00:00]} 2. d4 {[%emt 0:00:00]} d5 {[%emt 0:00:00]} 3. e5 {[%emt 0:00:00]} Bf5 {[%emt 0:00:00]} 4. h4 {[%emt 0:00:00]} h5 {[%emt 0:00:00]} 5. Bd3 {[%emt 0:00:00]} Bxd3 {[%emt 0:00:00]} 6. Qxd3 {[%emt 0:00:00]} Qa5+ {[%emt 0:00:00]} 7. Nc3 {[%emt 0:00:03]} e6 {[%emt 0:02:14]} 8. Bg5 {[%emt 0:00:08]} Ne7 {[%emt 0:05:03]} 9. O-O-O {[%emt 0:04:46]} Nd7 {[%emt 0:02:41]} 10. Kb1 {[%emt 0:03:24]} a6 {[%emt 0:04:49]} 11. Nge2 {[%emt 0:02:52]} c5 {[%emt 0:01:40]} 12. dxc5 {[%emt 0:05:15]} Nxe5 {[%emt 0:07:14]} 13. Qg3 {[%emt 0:02:56]} N5c6 {[%emt 0:02:56]} 14. Qf3 {[%emt 0:19:42]} Qxc5 {[%emt 0:18:52]} 15. Rhe1 {[%emt 0:03:07]} Ne5 {[%emt 0:00:50]} 16. Qg3 {[%emt 0:01:54]} Ng4 {[%emt 0:01:29]} 17. Nd4 {[%emt 0:03:17]} O-O-O {[%emt 0:01:28]} 18. Qf3 {[%emt 0:06:08]} e5 {[%emt 0:04:01]} 19. Qxf7 {[%emt 0:13:57]} exd4 {[%emt 0:04:29]} 20. Na4 {[%emt 0:00:10]} Qc6 {[%emt 0:06:12]} 21. Bxe7 {[%emt 0:01:19]} Bxe7 {[%emt 0:00:07]} 22. Rxe7 {[%emt 0:00:17]} Rhf8 {[%emt 0:01:44]} 23. Qxg7 {[%emt 0:02:10]} Rxf2 {[%emt 0:03:34]} 24. Qxd4 {[%emt 0:05:13]} Qxc2+ {[%emt 0:09:38]} 25. Ka1 {[%emt 0:00:04]} Kb8 {[%emt 0:00:20]} 26. a3 {[%emt 0:02:54]} Ka8 {[%emt 0:11:11]} 27. Nc5 {[%emt 0:05:08]} Rc8 {[%emt 0:00:47]} 28. Nxa6 {[%emt 0:08:12]} Qc4 {[%emt 0:06:28]} 29. Nc7+ {[%emt 0:03:37]} Kb8 {[%emt 0:00:58]} 30. Qxc4 {[%emt 0:00:34]} dxc4 {[%emt 0:00:02]} 31. Nb5 {[%emt 0:01:05]} Rf5 {[%emt 0:03:32]} 32. a4 {[%emt 0:01:45]} Nf6 {[%emt 0:00:21]} 33. Rf7 {[%emt 0:03:07]} Rf2 {[%emt 0:00:19]} 34. Rd6 {[%emt 0:02:01]} c3 {[%emt 0:01:17]} 35. Nxc3 {[%emt 0:01:02]} Ne4 {[%emt 0:00:06]} 36. Rxf2 {[%emt 0:00:11]} Nxf2 {[%emt 0:00:04]} 37. Rd5 {[%emt 0:01:10]} Rc4 {[%emt 0:01:03]} 38. Rxh5 {[%emt 0:00:28]} Rg4 {[%emt 0:00:05]} 39. Rg5 {[%emt 0:00:38]} Rxh4 {[%emt 0:00:03]} 40. Kb1 {[%emt 0:00:00]} Nd3 {[%emt 0:00:00]} 41. Kc2 {[%emt 0:03:38]} Nf4 {[%emt 0:04:51]} 42. Nb5 {[%emt 0:06:42]} b6 {[%emt 0:04:53]} 43. g3 {[%emt 0:00:04]} Rh2+ {[%emt 0:00:07]} 44. Kc3 {[%emt 0:00:06]} Ne2+ {[%emt 0:00:50]} 45. Kc4 {[%emt 0:00:34]} Nc1 {[%emt 0:01:42]} 46. Kc3 {[%emt 0:05:04]} Ne2+ {[%emt 0:00:45]} 47. Kc4 {[%emt 0:00:03]} Nc1 {[%emt 0:00:26]} 48. Kd5 {[%emt 0:01:20]} Rc2 {[%emt 0:01:06]} 49. Rg8+ {[%emt 0:00:26]} Kb7 {[%emt 0:00:07]} 50. Nd6+ {[%emt 0:01:08]} Ka7 {[%emt 0:00:17]} 51. Rg7+ {[%emt 0:00:42]} Ka6 {[%emt 0:01:29]} 52. Nc4 {[%emt 0:02:44]} Ne2 {[%emt 0:00:46]} 53. Rg6 {[%emt 0:01:45]} Ka7 {[%emt 0:00:10]} 54. Rxb6 {[%emt 0:04:28]} Nxg3 {[%emt 0:02:18]} 55. Rf6 {[%emt 0:00:32]} Ne2 {[%emt 0:01:18]} 56. Kc5 {[%emt 0:01:00]} Nc1 {[%emt 0:00:57]} 57. Rf7+ {[%emt 0:00:46]} Ka6 {[%emt 0:00:38]} 58. Rf6+ {[%emt 0:00:29]} Ka7 {[%emt 0:00:05]} 59. Rf3 {[%emt 0:00:06]} Na2 {[%emt 0:01:08]} 60. Rf7+ {[%emt 0:01:51]} Kb8 {[%emt 0:01:32]} 61. a5 {[%emt 0:00:31]} Rh2 {[%emt 0:01:45]} 62. a6 {[%emt 0:03:03]} Rh5+ {[%emt 0:00:13]} 63. Kb6 {[%emt 0:00:38]} Rh6+ {[%emt 0:00:33]} 64. Ka5 {[%emt 0:00:44]} Rh5+ {[%emt 0:00:07]} 65. Ka4 {[%emt 0:00:08]} Rh6 {[%emt 0:00:04]} 66. Rb7+ {[%emt 0:01:37]} Kc8 {[%emt 0:00:12]} 67. Nb6+ {[%emt 0:00:22]} 1-0

[Event "69th RUS-ch Women Higher League 2019"]
[Site "Yaroslavl"]
[Date "2019.07.04"]
[Round "7.17"]
[White "Nosacheva, Mariya"]
[Black "Yakushina, Ekaterina"]
[Result "1-0"]
[ECO "C15"]
[WhiteElo "2150"]
[BlackElo "1783"]
[Annotator "NA"]
[PlyCount "53"]
[EventDate "2019.06.27"]
[EventType "swiss"]
[EventCountry "RUS"]
[SourceTitle "playchess.com"]
[Source "ChessBase"]
[SourceQuality "1"]
[TimeControl "40/5400+30:1800+30"]

1. e4 {[%emt 0:00:00]} e6 {[%emt 0:02:16]} 2. d4 {[%emt 0:00:00]} d5 {[%emt 0:00:07]} 3. Nc3 {[%emt 0:00:00]} Bb4 {[%emt 0:00:08]} 4. exd5 {[%emt 0:00:00]} exd5 {[%emt 0:01:33]} 5. Bd3 {[%emt 0:01:16]} Nc6 {[%emt 0:02:19]} 6. a3 {[%emt 0:00:08]} Ba5 {[%emt 0:00:26]} 7. Be3 {[%emt 0:01:07]} Nf6 {[%emt 0:10:18]} 8. h3 {[%emt 0:02:17]} O-O {[%emt 0:08:00]} 9. Nge2 {[%emt 0:04:18]} Ne7 {[%emt 0:15:47]} 10. Ng3 {[%emt 0:01:20]} c6 {[%emt 0:04:35]} 11. O-O {[%emt 0:02:50]} Bc7 {[%emt 0:01:21]} 12. Bg5 {[%emt 0:01:29]} Ng6 {[%emt 0:01:28]} 13. Qf3 {[%emt 0:01:38]} Qd6 {[%emt 0:06:55]} 14. Bxf6 {[%emt 0:04:45]} gxf6 {[%emt 0:00:57]} 15. Nce2 {[%emt 0:01:52]} b6 {[%emt 0:02:35]} 16. Rfe1 {[%emt 0:01:20]} Bb7 {[%emt 0:11:54]} 17. Nh5 {[%emt 0:06:50]} Qh2+ {[%emt 0:13:11]} 18. Kf1 {[%emt 0:00:08]} Qh1+ {[%emt 0:00:11]} 19. Ng1 {[%emt 0:00:07]} Bh2 {[%emt 0:00:20]} 20. Ke2 {[%emt 0:12:22]} Rfe8+ {[%emt 0:01:52]} 21. Kd2 {[%emt 0:00:50]} Rxe1 {[%emt 0:00:36]} 22. Rxe1 {[%emt 0:00:10]} Nh4 {[%emt 0:00:07]} 23. Qg4+ {[%emt 0:01:40]} Ng6 {[%emt 0:00:13]} 24. Ne2 {[%emt 0:00:18]} Bf4+ {[%emt 0:01:06]} 25. Nexf4 {[%emt 0:00:28]} Qh2 {[%emt 0:00:05]} 26. Nxg6 {[%emt 0:01:04]} hxg6 {[%emt 0:00:12]} 27. Bxg6 {[%emt 0:00:10]} 1-0

[Event "69th RUS-ch Women Higher League 2019"]
[Site "Yaroslavl"]
[Date "2019.07.04"]
[Round "7.18"]
[White "Maltsevskaya, Aleksandra"]
[Black "Khokhlova, Daria"]
[Result "0-1"]
[ECO "B21"]
[WhiteElo "2316"]
[BlackElo "2234"]
[Annotator "NA"]
[PlyCount "92"]
[EventDate "2019.06.27"]
[EventType "swiss"]
[EventCountry "RUS"]
[SourceTitle "playchess.com"]
[Source "ChessBase"]
[SourceQuality "1"]
[TimeControl "40/5400+30:1800+30"]

1. e4 {[%emt 0:00:00]} c5 {[%emt 0:00:00]} 2. d4 {[%emt 0:00:56]} cxd4 {[%emt 0:00:17]} 3. c3 {[%emt 0:00:04]} d3 {[%emt 0:04:19]} 4. Nf3 g6 {[%emt 0:01:09]} 5. Bxd3 {[%emt 0:01:04]} Bg7 {[%emt 0:00:30]} 6. O-O {[%emt 0:00:08]} Nc6 {[%emt 0:00:33]} 7. c4 {[%emt 0:02:09]} d6 {[%emt 0:00:52]} 8. h3 {[%emt 0:00:06]} Nf6 {[%emt 0:00:28]} 9. Nc3 {[%emt 0:00:06]} O-O {[%emt 0:00:03]} 10. Be3 {[%emt 0:00:18]} Nd7 {[%emt 0:03:21]} 11. Rc1 {[%emt 0:02:09]} Nc5 {[%emt 0:02:07]} 12. Bb1 {[%emt 0:01:10]} Be6 {[%emt 0:03:15]} 13. b3 {[%emt 0:01:26]} a5 {[%emt 0:03:46]} 14. Nd5 {[%emt 0:07:19]} a4 {[%emt 0:09:45]} 15. b4 {[%emt 0:08:21]} Bxd5 {[%emt 0:02:28]} 16. cxd5 {[%emt 0:07:07]} Nxb4 {[%emt 0:00:05]} 17. Bxc5 {[%emt 0:00:05]} dxc5 {[%emt 0:00:03]} 18. Rxc5 {[%emt 0:00:06]} Qd7 {[%emt 0:08:50]} 19. Qe2 {[%emt 0:03:40]} Na6 {[%emt 0:07:59]} 20. Rb5 {[%emt 0:02:56]} Rfc8 {[%emt 0:02:30]} 21. Rd1 {[%emt 0:11:35]} a3 {[%emt 0:04:58]} 22. e5 {[%emt 0:04:45]} Nc5 {[%emt 0:06:40]} 23. Bc2 {[%emt 0:19:14]} Na4 {[%emt 0:04:50]} 24. Bxa4 {[%emt 0:00:20]} Rxa4 {[%emt 0:00:01]} 25. e6 {[%emt 0:08:34]} fxe6 {[%emt 0:02:45]} 26. dxe6 {[%emt 0:00:22]} Qc6 {[%emt 0:01:43]} 27. Rbd5 {[%emt 0:00:20]} Bf6 {[%emt 0:04:20]} 28. Qe3 {[%emt 0:05:02]} Kg7 {[%emt 0:02:37]} 29. h4 {[%emt 0:07:46]} Qc3 {[%emt 0:03:25]} 30. Qb6 {[%emt 0:01:57]} Qb2 {[%emt 0:01:56]} 31. Qe3 {[%emt 0:05:49]} Rc3 {[%emt 0:06:19]} 32. Qe1 {[%emt 0:00:05]} Qxa2 {[%emt 0:02:26]} 33. h5 {[%emt 0:00:17]} Rxf3 {[%emt 0:05:18]} 34. gxf3 {[%emt 0:00:06]} Qc4 {[%emt 0:01:03]} 35. Qe3 {[%emt 0:00:40]} Qf4 {[%emt 0:01:03]} 36. Qxf4 {[%emt 0:01:10]} Rxf4 {[%emt 0:00:01]} 37. Ra5 {[%emt 0:00:38]} Rxf3 {[%emt 0:00:44]} 38. Kg2 {[%emt 0:00:28]} Rb3 {[%emt 0:00:21]} 39. Rh1 {[%emt 0:00:34]} gxh5 {[%emt 0:03:06]} 40. Rhxh5 {[%emt 0:00:00]} b5 {[%emt 0:00:00]} 41. Ra8 {[%emt 0:01:42]} b4 {[%emt 0:04:33]} 42. Rb5 {[%emt 0:00:08]} Rb2 {[%emt 0:04:59]} 43. Kf3 {[%emt 0:00:05]} a2 {[%emt 0:02:52]} 44. Rbb8 {[%emt 0:03:40]} Rb3+ {[%emt 0:01:07]} 45. Kg4 {[%emt 0:00:07]} Ra3 {[%emt 0:00:39]} 46. Kh5 {[%emt 0:03:29]} Rxa8 {[%emt 0:00:10]} 0-1

[Event "69th RUS-ch Women Higher League 2019"]
[Site "Yaroslavl"]
[Date "2019.07.04"]
[Round "7.19"]
[White "Ovod, Evgenija"]
[Black "Mokshanova, Elizaveta"]
[Result "1-0"]
[ECO "B44"]
[WhiteElo "2361"]
[BlackElo "2020"]
[Annotator "NA"]
[PlyCount "101"]
[EventDate "2019.06.27"]
[EventType "swiss"]
[EventCountry "RUS"]
[SourceTitle "playchess.com"]
[Source "ChessBase"]
[SourceQuality "1"]
[TimeControl "40/5400+30:1800+30"]

1. e4 {[%emt 0:00:00]} c5 {[%emt 0:00:00]} 2. Nf3 {[%emt 0:00:00]} e6 {[%emt 0:00:00]} 3. d4 {[%emt 0:00:00]} cxd4 {[%emt 0:00:00]} 4. Nxd4 {[%emt 0:00:00]} Nc6 {[%emt 0:00:00]} 5. Nb5 {[%emt 0:00:00]} d6 {[%emt 0:01:14]} 6. c4 {[%emt 0:00:02]} Nf6 {[%emt 0:02:58]} 7. N1c3 {[%emt 0:00:06]} a6 {[%emt 0:03:07]} 8. Na3 {[%emt 0:00:07]} Be7 {[%emt 0:02:55]} 9. Be2 {[%emt 0:00:08]} O-O {[%emt 0:00:07]} 10. O-O {[%emt 0:00:03]} b6 {[%emt 0:02:10]} 11. Be3 {[%emt 0:00:07]} Bb7 {[%emt 0:01:02]} 12. Qb3 {[%emt 0:00:06]} Nd7 {[%emt 0:00:32]} 13. Rfd1 {[%emt 0:00:07]} Rb8 {[%emt 0:05:21]} 14. f4 {[%emt 0:25:18]} Qc7 {[%emt 0:08:31]} 15. Rac1 {[%emt 0:08:54]} Nc5 {[%emt 0:00:55]} 16. Qc2 {[%emt 0:00:05]} Bf6 {[%emt 0:08:03]} 17. Nab1 {[%emt 0:01:46]} Nb4 {[%emt 0:36:21]} 18. Qd2 {[%emt 0:00:08]} Rfd8 {[%emt 0:01:13]} 19. Qe1 {[%emt 0:04:48]} a5 {[%emt 0:02:53]} 20. a3 {[%emt 0:16:16]} Nc6 {[%emt 0:00:35]} 21. Bf3 {[%emt 0:04:29]} Nb3 {[%emt 0:00:46]} 22. Nb5 {[%emt 0:00:28]} Qe7 {[%emt 0:00:28]} 23. Rc2 {[%emt 0:01:09]} Ba8 {[%emt 0:00:59]} 24. Qf2 {[%emt 0:07:00]} Nc5 {[%emt 0:03:52]} 25. Rcd2 {[%emt 0:00:12]} e5 {[%emt 0:04:05]} 26. N1c3 {[%emt 0:10:46]} Nd4 {[%emt 0:01:15]} 27. Bxd4 {[%emt 0:13:37]} exd4 {[%emt 0:00:07]} 28. Nd5 {[%emt 0:00:03]} Bxd5 {[%emt 0:00:27]} 29. exd5 {[%emt 0:00:03]} d3 {[%emt 0:03:04]} 30. Re1 {[%emt 0:01:51]} Qd7 {[%emt 0:00:15]} 31. b4 {[%emt 0:01:15]} axb4 {[%emt 0:00:13]} 32. axb4 {[%emt 0:00:03]} Na6 {[%emt 0:01:47]} 33. Rxd3 {[%emt 0:02:47]} Nxb4 {[%emt 0:00:15]} 34. Ra3 {[%emt 0:00:11]} Qc8 {[%emt 0:04:04]} 35. Qe2 {[%emt 0:00:21]} g6 {[%emt 0:02:11]} 36. g3 {[%emt 0:02:14]} Qc5+ {[%emt 0:00:52]} 37. Kg2 {[%emt 0:00:04]} Ra8 {[%emt 0:02:44]} 38. Rxa8 {[%emt 0:01:53]} Rxa8 {[%emt 0:00:03]} 39. Kh3 {[%emt 0:00:10]} Kg7 {[%emt 0:00:30]} 40. Rd1 {[%emt 0:00:00]} h5 {[%emt 0:00:00]} 41. Rd2 {[%emt 0:03:34]} Kf8 {[%emt 0:18:52]} 42. Qe1 {[%emt 0:02:18]} Ra1 {[%emt 0:04:29]} 43. Qe4 {[%emt 0:07:59]} Ra8 {[%emt 0:06:50]} 44. Re2 {[%emt 0:00:37]} Na2 {[%emt 0:04:58]} 45. f5 {[%emt 0:04:55]} Kg7 {[%emt 0:00:41]} 46. fxg6 {[%emt 0:00:06]} fxg6 {[%emt 0:00:03]} 47. Qe6 {[%emt 0:00:17]} Rd8 {[%emt 0:01:10]} 48. Rxa2 {[%emt 0:00:10]} Qxc4 {[%emt 0:00:18]} 49. Ra7+ {[%emt 0:02:47]} Kh6 {[%emt 0:00:16]} 50. Qxf6 {[%emt 0:00:40]} Qf1+ {[%emt 0:00:34]} 51. Kh4 {[%emt 0:00:04]} 1-0

[Event "69th RUS-ch Women Higher League 2019"]
[Site "Yaroslavl"]
[Date "2019.07.04"]
[Round "7.20"]
[White "Matveeva, Olga"]
[Black "Afonasieva, Anna"]
[Result "1/2-1/2"]
[ECO "A16"]
[WhiteElo "2189"]
[BlackElo "2303"]
[Annotator "NA"]
[PlyCount "106"]
[EventDate "2019.06.27"]
[EventType "swiss"]
[EventCountry "RUS"]
[SourceTitle "playchess.com"]
[Source "ChessBase"]
[SourceQuality "1"]
[TimeControl "40/5400+30:1800+30"]

1. c4 {[%emt 0:00:00]} Nf6 {[%emt 0:00:00]} 2. Nc3 {[%emt 0:00:00]} d5 {[%emt 0:00:00]} 3. cxd5 {[%emt 0:01:25]} Nxd5 {[%emt 0:00:00]} 4. g3 {[%emt 0:01:03]} g6 {[%emt 0:01:17]} 5. Bg2 {[%emt 0:00:34]} Nb6 {[%emt 0:00:46]} 6. Nf3 {[%emt 0:01:24]} Bg7 {[%emt 0:00:30]} 7. O-O {[%emt 0:00:39]} c5 {[%emt 0:00:35]} 8. d3 {[%emt 0:01:35]} O-O {[%emt 0:01:20]} 9. Be3 {[%emt 0:04:25]} Na6 {[%emt 0:04:36]} 10. Nd2 {[%emt 0:03:09]} Rb8 {[%emt 0:04:03]} 11. a4 {[%emt 0:11:00]} e6 {[%emt 0:07:35]} 12. Qb3 {[%emt 0:05:25]} e5 {[%emt 0:04:02]} 13. a5 {[%emt 0:02:40]} Be6 {[%emt 0:00:59]} 14. Qa3 {[%emt 0:02:44]} Nd7 {[%emt 0:01:20]} 15. Nde4 {[%emt 0:02:20]} Qe7 {[%emt 0:06:38]} 16. Rfc1 {[%emt 0:04:21]} f5 {[%emt 0:08:08]} 17. Ng5 {[%emt 0:03:48]} Kh8 {[%emt 0:00:39]} 18. Nxe6 {[%emt 0:02:37]} Qxe6 {[%emt 0:00:06]} 19. Nb5 {[%emt 0:06:26]} f4 {[%emt 0:05:43]} 20. Bd2 {[%emt 0:01:55]} Nf6 {[%emt 0:06:07]} 21. Nc3 {[%emt 0:07:55]} Qf5 {[%emt 0:07:40]} 22. Ne4 {[%emt 0:03:32]} fxg3 {[%emt 0:10:37]} 23. Nxg3 {[%emt 0:00:09]} Qe6 {[%emt 0:01:00]} 24. Qa2 {[%emt 0:01:29]} Qd6 {[%emt 0:02:36]} 25. Qc4 {[%emt 0:07:02]} Qd7 {[%emt 0:07:23]} 26. Bc3 {[%emt 0:02:38]} Ng4 {[%emt 0:03:13]} 27. Rf1 {[%emt 0:01:55]} Rf4 {[%emt 0:04:08]} 28. Qd5 {[%emt 0:01:59]} Qe7 {[%emt 0:01:26]} 29. h3 {[%emt 0:02:31]} Nc7 {[%emt 0:01:16]} 30. Qb3 {[%emt 0:00:54]} Nf6 {[%emt 0:01:56]} 31. Bd2 {[%emt 0:04:17]} Rh4 {[%emt 0:00:27]} 32. Ra4 {[%emt 0:02:26]} Rxa4 {[%emt 0:02:21]} 33. Qxa4 {[%emt 0:00:03]} b5 {[%emt 0:00:19]} 34. axb6 {[%emt 0:01:23]} axb6 {[%emt 0:00:04]} 35. Qa7 {[%emt 0:01:07]} Qd8 {[%emt 0:00:24]} 36. Bg5 {[%emt 0:02:09]} Nb5 {[%emt 0:02:20]} 37. Qf7 {[%emt 0:01:01]} Nd6 {[%emt 0:01:13]} 38. Qe6 {[%emt 0:01:24]} Qf8 {[%emt 0:01:46]} 39. Ra1 {[%emt 0:01:54]} c4 {[%emt 0:03:41]} 40. h4 {[%emt 0:00:00]} Re8 {[%emt 0:00:00]} 41. Qh3 {[%emt 0:05:31]} cxd3 {[%emt 0:04:51]} 42. exd3 {[%emt 0:00:40]} e4 {[%emt 0:01:35]} 43. dxe4 {[%emt 0:11:33]} Nfxe4 {[%emt 0:00:50]} 44. Nxe4 {[%emt 0:00:46]} Nxe4 {[%emt 0:00:05]} 45. Be3 {[%emt 0:00:22]} Qf5 {[%emt 0:13:15]} 46. Qxf5 {[%emt 0:06:55]} gxf5 {[%emt 0:00:04]} 47. Bxe4 {[%emt 0:01:29]} fxe4 {[%emt 0:00:07]} 48. Bxb6 {[%emt 0:00:14]} Bxb2 {[%emt 0:00:16]} 49. Ra7 {[%emt 0:01:33]} Bf6 {[%emt 0:01:50]} 50. h5 {[%emt 0:02:44]} Kg8 {[%emt 0:01:34]} 51. Kg2 {[%emt 0:01:35]} Re5 {[%emt 0:01:36]} 52. Ra5 {[%emt 0:01:23]} Re6 {[%emt 0:04:52]} 53. Be3 {[%emt 0:00:34]} Re5 {[%emt 0:03:11]} 1/2-1/2

[Event "69th RUS-ch Women Higher League 2019"]
[Site "Yaroslavl"]
[Date "2019.07.04"]
[Round "7.21"]
[White "Markelova, Lubov"]
[Black "Schepetkova, Margarita"]
[Result "1-0"]
[ECO "D11"]
[WhiteElo "2186"]
[BlackElo "2241"]
[Annotator "NA"]
[PlyCount "99"]
[EventDate "2019.06.27"]
[EventType "swiss"]
[EventCountry "RUS"]
[SourceTitle "playchess.com"]
[Source "ChessBase"]
[SourceQuality "1"]
[TimeControl "40/5400+30:1800+30"]

1. Nf3 {[%emt 0:00:00]} d5 {[%emt 0:00:00]} 2. d4 {[%emt 0:00:00]} Nf6 {[%emt 0:00:00]} 3. c4 {[%emt 0:00:00]} c6 {[%emt 0:00:00]} 4. e3 {[%emt 0:00:00]} Bg4 {[%emt 0:00:00]} 5. h3 {[%emt 0:00:00]} Bh5 {[%emt 0:00:00]} 6. g4 {[%emt 0:00:10]} Bg6 {[%emt 0:00:06]} 7. Ne5 {[%emt 0:00:12]} e6 {[%emt 0:00:45]} 8. Nxg6 {[%emt 0:00:10]} hxg6 {[%emt 0:00:05]} 9. Bg2 {[%emt 0:00:21]} Nbd7 {[%emt 0:00:40]} 10. Qd3 {[%emt 0:00:16]} Bb4+ {[%emt 0:05:42]} 11. Nd2 {[%emt 0:00:26]} Qa5 {[%emt 0:03:16]} 12. a3 {[%emt 0:08:02]} Qa6 {[%emt 0:02:36]} 13. b3 {[%emt 0:11:47]} Nb6 {[%emt 0:06:41]} 14. axb4 {[%emt 0:05:21]} Qxa1 {[%emt 0:00:30]} 15. O-O {[%emt 0:00:28]} a5 {[%emt 0:06:34]} 16. c5 {[%emt 0:14:40]} Nbd7 {[%emt 0:01:12]} 17. b5 {[%emt 0:00:10]} a4 {[%emt 0:08:27]} 18. b4 {[%emt 0:00:49]} a3 {[%emt 0:01:32]} 19. Qc2 {[%emt 0:03:06]} a2 {[%emt 0:00:24]} 20. bxc6 {[%emt 0:07:34]} bxc6 {[%emt 0:02:07]} 21. Bb2 {[%emt 0:05:28]} Qxf1+ {[%emt 0:00:07]} 22. Bxf1 {[%emt 0:00:10]} a1=Q {[%emt 0:00:16]} 23. Bxa1 {[%emt 0:00:13]} Rxa1 {[%emt 0:00:05]} 24. g5 {[%emt 0:05:44]} Nh7 {[%emt 0:04:01]} 25. f4 {[%emt 0:11:53]} O-O {[%emt 0:00:41]} 26. Nb3 {[%emt 0:01:57]} Ra7 {[%emt 0:03:37]} 27. Na5 {[%emt 0:00:49]} Nb8 {[%emt 0:01:08]} 28. Bd3 {[%emt 0:01:14]} Rc8 {[%emt 0:02:08]} 29. Qe2 {[%emt 0:02:00]} Nf8 {[%emt 0:00:09]} 30. h4 {[%emt 0:00:42]} Re7 {[%emt 0:03:08]} 31. Bc2 {[%emt 0:02:15]} Rcc7 {[%emt 0:02:09]} 32. Ba4 {[%emt 0:00:38]} f6 {[%emt 0:01:53]} 33. Qa2 {[%emt 0:05:23]} Kh7 {[%emt 0:02:04]} 34. gxf6 {[%emt 0:03:46]} gxf6 {[%emt 0:00:05]} 35. Nxc6 {[%emt 0:00:21]} Nxc6 {[%emt 0:00:29]} 36. Bxc6 {[%emt 0:00:04]} Rxc6 {[%emt 0:01:30]} 37. Qa8 {[%emt 0:00:24]} Rcc7 {[%emt 0:00:43]} 38. Qxf8 {[%emt 0:00:19]} Ra7 {[%emt 0:00:10]} 39. Kf2 {[%emt 0:07:20]} Rf7 {[%emt 0:07:04]} 40. Qd6 {[%emt 0:00:00]} Ra2+ {[%emt 0:00:00]} 41. Kf3 {[%emt 0:02:51]} Rfa7 {[%emt 0:03:06]} 42. Qxe6 {[%emt 0:02:00]} f5 {[%emt 0:01:29]} 43. h5 {[%emt 0:04:25]} gxh5 {[%emt 0:00:04]} 44. Qxf5+ {[%emt 0:00:12]} Kh8 {[%emt 0:00:08]} 45. Qxh5+ {[%emt 0:00:30]} Kg7 {[%emt 0:00:35]} 46. Qxd5 {[%emt 0:00:19]} Rh2 {[%emt 0:00:08]} 47. Qe5+ {[%emt 0:00:36]} Kh7 {[%emt 0:00:13]} 48. c6 {[%emt 0:00:51]} Rh3+ {[%emt 0:00:29]} 49. Ke4 {[%emt 0:00:13]} Rh6 {[%emt 0:00:11]} 50. c7 {[%emt 0:00:35]} 1-0